Cogmind - Beta 16.1 @@@ ROGUE MODE // 2026.03.01 @ 00:19:44 Player: Artackni Result: Destroyed by D-83 Annihilator with Micro-nuke Launcher Performance ------------- Evolutions (7) 3500 Regions Visited (21) 4200 Robots Destroyed (358) 1790 Value Destroyed (16310) 16310 Prototype IDs (52) 1040 Alien Tech Used (0) 0 Bonus (8160) 8160 TOTAL SCORE: 35000 Bonus ------- High Alert Combat Kills 2522 Follower Combat Kills 1684 Network Hubs Disabled 200 Registered with UFD 300 Met Optimus in HQ 500 Built Enhanced Grunts 300 A7 Reached Mainframe 300 Met R17 at Cetus 500 Met R17 at Research 2000 Friendly Fire -146 Cogmind --------- Core Integrity 0/1300 Matter 98/300 Energy 100/100 System Corruption 3% Temperature Cool (0) Movement Core (50) Location -3/Research Parts ------- > --- POWER (2) -------- (None) > --- PROPULSION (6) --- (None) > --- UTILITY (10) ----- (None) > --- WEAPON (3) ------- (None) > --- INVENTORY (5) ---- Enhanced Multireflex Exoskeleton Centrium Leg Centrium Leg Improved Medium Armor Plating Peak State ------------ > --- POWER ------------ Particle Reactor Light Particle Reactor > --- PROPULSION ------- Biometal Leg Enhanced Multireflex Exoskeleton Enhanced Multireflex Exoskeleton Centrium Leg > --- UTILITY ---------- Advanced Cooling System Advanced Coolant Injector High-capacity Storage Unit Spectral Analyzer Advanced Sensor Array Advanced Signal Interpreter Experimental Core Analyzer Experimental Reaction Control System Centrium Light Armor Plating Centrium Light Armor Plating > --- WEAPON ----------- Enhanced Nova Cannon Enhanced Nova Cannon Compact Linear Accelerator > --- INVENTORY -------- Light Particle Reactor Light Quantum Reactor Enhanced Multireflex Exoskeleton Centrium Leg Centrium Leg Centrium Leg Advanced Heat Sink Advanced Heat Sink Improved Transmission Jammer Improved Medium Armor Plating Layered Medium Armor Plating Advanced Focal Shield Advanced Thermal Shield Compact HERF Cannon Enhanced Nova Cannon Compact Linear Accelerator Gamma Bomb Array Improved Plasma Cutter [Rating: 182] Favorites ----------- Power Quantum Reactor Engine Heavy Ion Engine Power Core Neutrino Core Reactor Quantum Reactor Propulsion Centrium Leg Treads Light Treads Leg Centrium Leg Wheel Compact Wheel Utility Advanced Heat Sink Device Advanced Heat Sink Storage Large Storage Unit Processor Spectral Analyzer Hackware Hacking Suite Protection Light Armor Plating Weapon Enhanced Nova Cannon Energy Gun Improved Medium Laser Energy Cannon Enhanced Nova Cannon Ballistic Gun Advanced KE Penetrator Ballistic Cannon Magnetic Acceleration Cannon Launcher Gamma Bomb Array Special Weapon Improved Remote Datajack Build | -11 -10 -10 -9 -9 -8 -8 -8 -8 -6 -6 -6 -6 -6 -5 -5 -5 -5 -4 -4 -4 -3 ------- Run | Yrd Mat Min Mat Min Mat Sto Rec Scr Fac Ext Cet Arc Hub Fac Upp Upp War Pro Fac Arm Res Slots Evolved 14 | . . . 2 . 2 . . . 4 . . . . 2 . . . . 2 . 2 Power 1 | . . . . . . . . . 1 . . . . . . . . . . . . Propulsion 4 | . . . . . . . . . . . . . . 1 . . . . 2 . 1 Utility 8 | . . . 1 . 2 . . . 3 . . . . 1 . . . . . . 1 Weapon 1 | . . . 1 . . . . . . . . . . . . . . . . . . Parts Attached 302 | 7 13 1 14 1 5 1 4 1 44 18 9 2 2 34 13 8 10 3 17 42 53 Power 42 | 1 2 . 1 . . . 1 . 8 4 2 1 . 4 1 1 1 . . 7 8 Engine 13 | 1 2 . 1 . . . 1 . 3 4 . . . . 1 . . . . . . Core 9 | . . . . . . . . . 4 . . 1 . 4 . . . . . . . Reactor 20 | . . . . . . . . . 1 . 2 . . . . 1 1 . . 7 8 Propulsion 62 | 2 4 . 2 1 2 . . . 7 2 . . . 8 3 2 1 1 9 8 10 Treads 2 | . 1 . . . . . . . . . . . . . . . . . . . 1 Leg 25 | . . . . . . . . . . . . . . . 2 2 1 1 3 7 9 Wheel 35 | 2 3 . 2 1 2 . . . 7 2 . . . 8 1 . . . 6 1 . Hover . | . . . . . . . . . . . . . . . . . . . . . . Flight . | . . . . . . . . . . . . . . . . . . . . . . Utility 120 | 2 3 1 3 . 2 . 2 . 20 5 4 . 1 15 5 2 7 2 6 14 26 Device 70 | 1 2 1 1 . 1 . . . 12 4 3 . 1 7 1 1 4 . 4 9 18 Storage 6 | 1 1 . 1 . . . . . . . . . . . 1 . 1 . . . 1 Processor 9 | . . . . . . . . . 2 . . . . 2 1 . 2 . . . 2 Hackware 3 | . . . . . . . . . 2 . . . . 1 . . . . . . . Protection 32 | . . . 1 . 1 . 2 . 4 1 1 . . 5 2 1 . 2 2 5 5 Artifact . | . . . . . . . . . . . . . . . . . . . . . . Weapon 78 | 2 4 . 8 . 1 1 1 1 9 7 3 1 1 7 4 3 1 . 2 13 9 Energy Gun 20 | . 2 . 5 . . . . . 2 1 1 . . 2 2 1 . . . 4 . Energy Cannon 28 | . . . 1 . 1 1 . 1 4 2 . 1 . 3 . . . . 1 7 6 Ballistic Gun 13 | 2 2 . 2 . . . 1 . 1 . 1 . . 1 . 2 . . 1 . . Ballistic Cannon 12 | . . . . . . . . . 2 3 1 . 1 1 . . . . . 2 2 Launcher 2 | . . . . . . . . . . . . . . . 1 . . . . . 1 Special Weapon 3 | . . . . . . . . . . 1 . . . . 1 . 1 . . . . Impact Weapon . | . . . . . . . . . . . . . . . . . . . . . . Slashing Weapon . | . . . . . . . . . . . . . . . . . . . . . . Piercing Weapon . | . . . . . . . . . . . . . . . . . . . . . . Special Melee Weapon . | . . . . . . . . . . . . . . . . . . . . . . Unidentified Prototypes 29 | . . . 4 . 1 1 . . 3 . 3 1 . 2 . . 7 . . . 7 Corrupted Parts 9 | . . . . . . . . . 1 1 2 . . 1 1 3 . . . . . System Corruption 44 | . . . . . . . . . 2 7 8 . . 2 6 19 . . . . . Parts Lost 126 | . 6 . . . . . . . 20 15 3 . 1 11 11 10 . 2 6 11 30 Power 19 | . 1 . . . . . . . 1 3 1 . . 2 1 2 . . 1 2 5 Propulsion 24 | . 3 . . . . . . . 3 2 . . . 3 5 1 . . 3 1 3 Utility 56 | . 1 . . . . . . . 13 5 1 . 1 3 4 4 . 2 2 5 15 Weapon 27 | . 1 . . . . . . . 3 5 1 . . 3 1 3 . . . 3 7 Highest Loss Streak 8 | . 3 . . . . . . . 8 8 2 . 1 7 5 6 . 2 3 3 7 To Critical Strikes 2 | . . . . . . . . . . 1 . . . . . . . . . . 1 Average Backups 15 | 2 8 10 10 15 14 15 14 15 14 12 14 15 14 14 14 13 12 17 19 19 18 Power 1 | . 1 1 1 2 2 2 1 1 2 2 3 2 2 1 1 . . 1 1 1 1 Propulsion 2 | 1 3 3 2 3 2 2 2 2 2 1 . . . . . . . 1 2 5 3 Utility 5 | . 1 2 2 4 3 4 5 6 3 2 3 5 5 4 6 7 7 9 10 5 8 Weapon 5 | . 1 3 4 6 6 7 6 5 5 5 6 7 6 6 5 4 3 4 3 4 3 Tool/Special . | . . . . . . . . . . . . . . . . . . . . . . Unused Backups 59 | . 2 1 9 2 5 . 1 2 4 . 2 . 1 2 . . . . 3 10 15 Power 8 | . . 1 1 1 . . . . 1 . . . . 1 . . . . . . 3 Propulsion 17 | . 1 . 5 . 4 . . . 2 . . . . . . . . . . 3 2 Utility 15 | . 1 . 1 1 . . . 1 1 . . . . . . . . . 2 . 8 Weapon 19 | . . . 2 . 1 . 1 1 . . 2 . 1 1 . . . . 1 7 2 Tool/Special . | . . . . . . . . . . . . . . . . . . . . . . Average Slot Usage (%) 92 | . 97 100 99 100 98 100 100 100 93 80 89 93 92 92 90 76 84 92 93 97 92 Engine 3 | . 13 14 11 11 9 9 9 9 2 5 2 . . . . 5 4 . . . . Core 2 | . . . . . . . . . 6 1 . . 6 9 5 2 . . . . . Reactor 3 | . . . . . . . . . 2 3 6 12 6 1 . 1 . 5 5 9 8 Leg 6 | . . . . . . . . . . . . . . . 5 11 17 17 17 22 23 Wheel 9 | . 21 28 22 22 18 18 18 18 11 6 6 6 6 10 8 . . . 6 1 . Device 20 | . 12 14 21 22 18 18 18 18 24 18 22 26 25 22 16 9 12 9 13 23 28 Storage 6 | . 14 14 11 11 9 9 9 9 6 6 6 6 6 5 5 5 5 5 5 5 3 Processor 9 | . . . . . . . . . 9 13 13 13 13 11 15 17 19 26 16 11 8 Protection 6 | . . . . . 16 18 18 18 6 4 9 6 6 10 10 3 3 7 10 5 3 Energy Gun 3 | . 5 . 20 22 11 1 . . 2 4 6 . . 1 4 7 3 . . 1 . Energy Cannon 8 | . . . . . 6 16 18 18 13 5 1 5 6 8 6 3 . . . 9 12 Ballistic Gun 5 | . 22 28 11 11 9 9 9 9 . . 4 6 6 3 . 2 11 11 13 2 . Ballistic Cannon 1 | . . . . . . . . . 3 7 5 6 6 1 4 2 . . . . . Peak Build Rating 182 | 7 9 9 22 21 25 28 28 29 72 72 97 97 96 103 87 83 127 127 135 160 182 Average Rating 81 | 5 7 8 18 20 23 27 28 28 58 64 84 96 93 96 81 75 87 124 126 144 166 On Entrance 60 | . 7 8 9 20 21 25 28 28 29 72 71 97 95 92 87 84 71 127 126 93 149 Avg Prop Armor Cover (%) 7 | . 11 . . . . . . . . . . . . . 3 . . . 8 7 . Naked Turns 37 | . . . . . . . . . . . . . . . . . . . . . 37 Heaviest Build 151 | 12 19 18 39 39 46 51 51 53 82 71 87 93 93 96 107 100 106 118 120 132 151 Greatest Support 180 | 32 32 20 26 32 32 32 32 32 32 28 28 28 28 38 35 56 61 61 104 150 180 Greatest Overweight (x) 9 | . 1 . 1 1 1 1 1 1 4 2 3 3 3 5 9 6 1 1 5 2 1 Average Overweight (x) 1 | . . . . 1 1 1 1 1 2 1 2 3 3 2 3 1 1 1 2 . . Largest Inventory Capacity 20 | 8 10 10 15 15 15 15 15 15 15 15 15 15 15 15 20 20 20 20 20 20 20 Average Capacity 16 | 7 9 10 11 15 15 15 15 15 15 15 15 15 15 15 18 20 20 20 20 20 19 Most Carried 20 | 6 10 10 15 15 15 15 15 15 15 15 15 15 15 15 20 20 20 20 20 20 20 Average Carried 15 | 3 8 9 10 14 14 15 14 15 14 13 14 15 14 14 18 19 17 19 19 19 19 Final Capacity 20 | 8 10 10 15 15 15 15 15 15 15 15 15 15 15 15 20 20 20 20 20 20 5 Final Carried 20 | 5 10 10 15 15 15 15 15 15 15 15 15 15 15 15 19 17 19 20 20 20 5 Class Distribution -------------------- 43% | Scavenger-Tank 36% | Scavenger-Gunner 5% | Gunner 4% | Mutant 3% | Tank Dominant Class ---------------- Mutant | -10/Materials Scavenger-Mutant | -10/Mines Scavenger-Gunner | -9/Materials Scavenger-Gunner | -9/Mines Scavenger-Tank | -8/Materials Scavenger-Tank | -8/Storage Scavenger-Tank | -8/Recycling Scavenger-Tank | -8/Scraptown Scavenger-Tank | -6/Factory Scavenger-Gunner | -6/Extension Scavenger-Tank | -6/Cetus Scavenger-Gunner | -6/Archives Scavenger-Gunner | -6/Hub_04(d) Scavenger-Tank | -5/Factory Scavenger-Tank | -5/Upper Caves Scavenger-Gunner | -5/Upper Caves Scavenger-Tank | -5/Warlord Scavenger-Tank | -4/Proximity Caves Scavenger-Tank | -4/Factory Scavenger-Gunner | -4/Armory Scavenger-Tank | -3/Research Resources | -11 -10 -10 -9 -9 -8 -8 -8 -8 -6 -6 -6 -6 -6 -5 -5 -5 -5 -4 -4 -4 -3 ----------- Run | Yrd Mat Min Mat Min Mat Sto Rec Scr Fac Ext Cet Arc Hub Fac Upp Upp War Pro Fac Arm Res Matter Collected 8349 | 233 435 . 422 52 87 28 93 10 839 1218 291 211 82 1031 402 277 . 408 645 775 810 Remotely . | . . . . . . . . . . . . . . . . . . . . . . Salvage Created 18712 | 58 628 . 1288 327 148 107 692 . 2668 1099 156 144 421 2645 813 445 . 742 1016 2284 3031 Parts 814 | 11 36 . 69 26 6 7 39 . 111 43 7 2 17 108 13 19 . 24 55 96 125 Haulers Intercepted 9 | . 2 . 5 . . . . . 1 1 . . . . . . . . . . . Recyclers Shooed 7 | 2 . . . . . . . . . 1 . . . 3 . . . . 1 . . Parts Field Recycled . | . . . . . . . . . . . . . . . . . . . . . . Retrieved Matter . | . . . . . . . . . . . . . . . . . . . . . . Parts Self-Destructed 59 | . . . . . . . . . . . . . . . 11 21 . 27 . . . Prevented . | . . . . . . . . . . . . . . . . . . . . . . Parts Restored . | . . . . . . . . . . . . . . . . . . . . . . Kills | -11 -10 -10 -9 -9 -8 -8 -8 -8 -6 -6 -6 -6 -6 -5 -5 -5 -5 -4 -4 -4 -3 ------- Run | Yrd Mat Min Mat Min Mat Sto Rec Scr Fac Ext Cet Arc Hub Fac Upp Upp War Pro Fac Arm Res Combat Hostiles Destroyed 257 | . 12 . 15 10 3 2 4 . 41 11 3 2 . 33 12 6 . 10 10 36 47 Melee 1 | . . . . . . . . . . . . . . . . . . . . 1 . Guns 85 | . 12 . 15 10 2 . . . 4 2 2 1 . 8 2 5 . 10 10 2 . Cannons 146 | . . . . . 1 2 4 . 35 9 1 1 . 21 9 . . . . 29 34 AOE 7 | . . . . . . . . . . . . . . 1 1 . . . . . 5 Classes Destroyed 22 | 1 6 . 4 . 1 . . . 3 1 . . . . 1 . . 1 . 1 3 Worker 25 | . 1 . 1 . . . . . 8 4 . . 5 4 . . . . 2 . . Builder 16 | . . . 1 . . . 1 . 2 7 . . . 5 . . . . . . . Tunneler 8 | 3 1 . . 1 . . . . 1 . . . 1 . . . . . 1 . . Hauler 9 | . 2 . 5 . . . . . 1 1 . . . . . . . . . . . Recycler 24 | . . . 4 2 . . 6 . 1 4 . . 1 4 . . . . 2 . . Minesweeper 1 | . . . . . . . . . . . . . . . 1 . . . . . . Mechanic 3 | . . . . . . . . . 1 . . . . 1 . . . . 1 . . Operator 2 | . 1 . 1 . . . . . . . . . . . . . . . . . . Watcher 11 | . 1 . 3 . . . . . 3 1 . . . . . . . . 1 2 . Swarmer 39 | . 2 . 3 8 . . . . 7 . . . . . 1 . . 1 . 5 12 Saboteur 3 | . . . . . . . . . . . . . . . . . . 1 . 2 . Grunt 87 | . 10 . 5 2 2 1 . . 18 5 . . . 13 5 2 . 4 1 10 9 Brawler 7 | . . . . . . . . . 2 . . . . 1 3 . . . . 1 . Duelist 4 | . . . 1 . . . . . . . . . . . . . . 3 . . . Sentry 40 | . . . 6 . . 1 4 . 5 2 . 2 . 4 2 1 . 1 1 6 5 Demolisher 2 | . . . . . . . . . . . . . . . . . . . . . 2 Specialist 4 | . . . . . . . . . . . . . . . . . . . . 4 . Hunter 19 | . . . . . 1 . . . 3 2 . . . 6 . 2 . . 2 2 1 Programmer 26 | . . . . . . . . . 6 . . . . 9 . . . . 6 5 . Behemoth 5 | . . . . . . . . . . 2 . . . . 1 1 . . . 1 . Cetus Guard 3 | . . . . . . . . . . . 3 . . . . . . . . . . Enhanced Grunt 1 | . . . . . . . . . . . . . 1 . . . . . . . . Striker 15 | . . . . . . . . . . . . . . . . . . . . . 15 Executioner 3 | . . . . . . . . . . . . . . . . . . . . . 3 Decomposer 4 | . . . . . . . . . . . . . . . 4 . . . . . . Guerrilla 1 | . . . . . . . . . . . . . 1 . . . . . . . . Best Kill Streak 8 | 1 2 . 8 4 1 1 5 . 7 7 1 1 7 5 4 2 . 6 4 7 6 Combat Bots Only 7 | . 2 . 4 4 1 1 2 . 7 2 1 1 . 5 4 2 . 6 3 7 6 Max Kills in Single Turn 6 | 1 1 . 1 2 1 1 2 . 2 2 1 1 6 2 3 1 . 2 2 2 3 Gunslinging 1 | . . . . . . . . . . . . . . . . . . 1 . . . Exploded 3 | . . . . . . . . . . . . . . 1 1 . . . . . 3 Melee 1 | . . . . . . . . . . . . . . . . . . . . 1 . Uniques/NPCs Destroyed . | . . . . . . . . . . . . . . . . . . . . . . Combat | -11 -10 -10 -9 -9 -8 -8 -8 -8 -6 -6 -6 -6 -6 -5 -5 -5 -5 -4 -4 -4 -3 -------- Run | Yrd Mat Min Mat Min Mat Sto Rec Scr Fac Ext Cet Arc Hub Fac Upp Upp War Pro Fac Arm Res Hostile Shots Fired 2294 | . 77 . 34 18 8 2 6 . 320 256 30 5 22 231 81 70 . 37 162 449 486 Missed 843 | . 19 . 11 8 3 1 3 . 101 99 9 2 9 69 24 23 . 5 60 185 212 Hits 1451 | . 58 . 23 10 5 1 3 . 219 157 21 3 13 162 57 47 . 32 102 264 274 Melee 45 | . . . . . . . . . 1 . . . . 4 2 . . 9 . 1 28 Projectile 1406 | . 58 . 23 10 5 1 3 . 218 157 21 3 13 158 55 47 . 23 102 263 246 AOE 11 | . . . . . . . . . . . . . . . . . . . . . 11 Critical Strikes 56 | . 1 . 1 . . . . . 9 5 3 . . 9 . 1 . 1 1 9 16 Damage Taken 26063 | . 717 . 252 89 79 18 44 . 2757 2507 572 124 260 2953 1282 941 . 560 1598 4177 7133 Core 3147 | . 95 . 71 46 . 18 . . 293 302 36 . 11 208 56 275 . 35 132 241 1328 Absorbed by Shields 2082 | . . . . . . . . . 569 208 65 . . . . . . 169 397 . 674 Redirected to Shielding 188 | . . . . . . . . . . . . . . . . . . . 188 . . Ignored by Resistances 848 | . . . . . . . . . . . . . . 184 . 10 . 50 . 18 586 Core Remaining (%) 65 | 100 . 62 . 70 . . . 96 . . . . 24 . . . . 42 . 67 . Volleys Fired 895 | 11 67 . 56 14 9 6 15 . 134 107 17 11 12 105 46 27 . 29 35 92 102 Largest 3 | 2 2 . 3 3 3 3 3 . 3 3 3 3 3 3 3 3 . 3 3 3 3 Hottest 360 | 40 85 . 168 135 147 126 128 . 240 159 240 163 173 206 172 236 . 151 103 360 360 Shots Fired 2377 | 22 132 . 166 42 27 18 45 . 390 237 41 23 15 303 117 75 . 64 105 273 282 Gun 884 | 22 132 . 162 42 23 6 15 . 51 25 19 13 2 78 32 62 . 58 105 37 . Cannon 1458 | . . . 4 . 4 12 30 . 339 195 22 10 13 225 80 13 . . . 236 275 Launcher 10 | . . . . . . . . . . . . . . . 3 . . . . . 7 Special 25 | . . . . . . . . . . 17 . . . . 2 . . 6 . . . Kinetic 815 | 22 102 . 56 14 9 6 15 . 60 129 23 20 8 90 26 14 . 50 105 34 32 Thermal 1522 | . 30 . 110 28 18 12 30 . 330 91 18 3 7 206 86 61 . 10 . 239 243 Explosive 3 | . . . . . . . . . . . . . . . 3 . . . . . . Electromagnetic 14 | . . . . . . . . . . . . . . 7 . . . . . . 7 Robot Hit Streak 25 | 4 14 . 12 16 8 3 8 . 25 14 5 4 1 12 16 7 . 7 14 14 16 Robot Miss Streak 8 | 3 3 . 4 2 4 1 1 . 4 5 5 1 2 5 2 4 . 2 2 5 8 Penetration Max 1 | . . . . . . . . . . 1 1 . . 1 . . . 1 1 1 . Secondary Targets 8 | . . . 1 1 . . . . . . . . . . . . . 3 3 . . Max Gunslinging Chain 1 | . . . 1 1 . . . . . . . . . . . . . 1 1 . . Shots Hit Robots 1366 | 12 83 . 90 24 17 8 24 . 215 147 25 13 3 175 65 42 . 46 77 161 139 Core Hits 624 | 4 34 . 41 14 6 3 12 . 91 60 14 7 8 81 32 14 . 23 34 63 83 Critical Kills 29 | . . . . . . . . . 1 1 1 1 . 6 1 . . 5 5 3 5 Critical Parts Destroyed 20 | . 1 . . . . . . . . 3 1 3 . 1 . . . 7 4 . . Critical Strikes 87 | . 4 . 4 2 . . . . 3 16 2 4 . 10 4 5 . 12 9 6 6 Burn 14 | . 3 . 4 2 . . . . 1 . . . . . . 4 . . . . . Meltdown 13 | . . . . . . . . . 1 . . . . 3 1 . . . . 3 5 Destroy 40 | . 1 . . . . . . . . 7 2 4 . 4 . 1 . 12 9 . . Blast 20 | . . . . . . . . . 1 9 . . . 3 3 . . . . 3 1 Melee Attacks . | . . . . . . . . . . . . . . . . . . . . . . Impact . | . . . . . . . . . . . . . . . . . . . . . . Slashing . | . . . . . . . . . . . . . . . . . . . . . . Piercing . | . . . . . . . . . . . . . . . . . . . . . . Sneak Attacks . | . . . . . . . . . . . . . . . . . . . . . . Combat Hostiles . | . . . . . . . . . . . . . . . . . . . . . . Follow-up Attacks . | . . . . . . . . . . . . . . . . . . . . . . Damage Inflicted 46344 | 124 975 . 1548 435 287 175 659 . 6727 5142 701 411 874 6342 2614 1165 . 1279 2329 6700 7857 Guns 12134 | 124 975 . 1548 435 221 47 94 . 728 437 352 287 52 1478 468 931 . 1253 2329 375 . Cannons 31179 | . . . . . 66 128 565 . 5999 4705 349 124 46 4686 1645 234 . . . 6325 6307 Explosions 3005 | . . . . . . . . . . . . . 776 178 501 . . . . . 1550 Melee . | . . . . . . . . . . . . . . . . . . . . . . Ramming 11 | . . . . . . . . . . . . . . . . . . 11 . . . Kinetic 13567 | 124 735 . 499 93 82 47 94 . 815 3189 291 374 52 1684 643 171 . 1133 2329 563 649 Thermal 30201 | . 240 . 1049 342 205 128 565 . 5912 1953 410 37 46 4346 1470 994 . 135 . 6137 6232 Explosive 501 | . . . . . . . . . . . . . . . 501 . . . . . . Electromagnetic 2064 | . . . . . . . . . . . . . 776 312 . . . . . . 976 Impact . | . . . . . . . . . . . . . . . . . . . . . . Slashing . | . . . . . . . . . . . . . . . . . . . . . . Piercing . | . . . . . . . . . . . . . . . . . . . . . . Highest Corruption 36 | . . . . . . . . . 9 16 24 24 24 11 17 36 36 . 13 17 3 Average Corruption 13 | . . . . . . . . . 5 10 22 24 24 7 16 22 36 . 9 14 2 Corruption Purged . | . . . . . . . . . . . . . . . . . . . . . . Corruption Blocked . | . . . . . . . . . . . . . . . . . . . . . . Effects 448 | . . . . . . . . . 42 55 25 41 34 53 46 54 4 . 28 61 5 Message Errors 99 | . . . . . . . . . 7 11 4 5 9 9 16 13 1 . 10 13 1 Matter Fused 104 | . . . . . . . . . 11 12 8 8 10 15 6 12 . . 7 12 3 Heat Flow Errors 49 | . . . . . . . . . 6 7 3 9 2 3 2 9 1 . 1 6 . Energy Discharges 47 | . . . . . . . . . 2 4 1 6 5 6 3 6 1 . 2 10 1 Parts Rejected 5 | . . . . . . . . . . . 1 1 . . 1 . . . 1 1 . Parts Fused 6 | . . . . . . . . . . 1 1 1 . . 1 1 . . . 1 . Data Loss (minor) 52 | . . . . . . . . . 5 9 1 5 5 8 4 7 1 . 3 4 . Data Loss (major) 13 | . . . . . . . . . 2 1 . 1 . 4 1 . . . 2 2 . Misfires 20 | . . . . . . . . . 1 1 2 2 1 3 2 4 . . 1 3 . Alerts 9 | . . . . . . . . . 3 . 1 . . 1 3 . . . . 1 . Misdirections 9 | . . . . . . . . . . . . 2 . 1 3 . . . 1 2 . Weapon Failures 35 | . . . . . . . . . 5 9 3 1 2 3 4 2 . . . 6 . Overload Shots 4 | . . . . . . . . . . 2 2 . . . . . . . . . . Overflow Damage 599 | . . . . . . . . . 167 96 . . 27 85 16 . . . . 81 127 Projectiles 533 | . . . . . . . . . 167 96 . . . 79 16 . . . . 81 94 Explosions 66 | . . . . . . . . . . . . . 27 6 . . . . . . 33 Melee . | . . . . . . . . . . . . . . . . . . . . . . Knockbacks 30 | . . . . . . . . . 6 10 . 1 . 5 1 . . . . . 7 Impact . | . . . . . . . . . . . . . . . . . . . . . . Kinetic 29 | . . . . . . . . . 6 10 . 1 . 4 1 . . . . . 7 Secondary 1 | . . . . . . . . . . . . . . 1 . . . . . . . Self-Inflicted Damage 480 | . . . . . . . . . . . . . 100 59 76 . . . . . 245 Shots 20 | . . . . . . . . . . . . . 1 2 2 . . . . . 15 Rammed . | . . . . . . . . . . . . . . . . . . . . . . Targets Rammed 1 | . . . . . . . . . . . . . . . . . . 1 . . . Kicked 1 | . . . . . . . . . . . . . . . . . . 1 . . . Crushed . | . . . . . . . . . . . . . . . . . . . . . . Highest Temperature 601 | . 103 . 181 124 211 90 54 . 282 211 194 213 167 106 167 601 128 317 96 354 366 Average Temperature 82 | . 32 . 44 46 73 34 19 . 71 59 48 58 54 14 34 140 75 200 40 105 104 Received Heat Transfer 3224 | . 372 . 96 12 . 9 18 . 491 205 36 . 24 556 315 150 . 56 135 544 205 Effects 15 | . . . . . . . . . . . . . . . . 11 . 2 . 1 1 Shutdowns 3 | . . . . . . . . . . . . . . . . 1 . . . 1 1 Energy Bleed 3 | . . . . . . . . . . . . . . . . 3 . . . . . Interference 7 | . . . . . . . . . . . . . . . . 7 . . . . . Short Circuit 1 | . . . . . . . . . . . . . . . . . . 1 . . . Damage (minor) 1 | . . . . . . . . . . . . . . . . . . 1 . . . Siege Activations . | . . . . . . . . . . . . . . . . . . . . . . Martial Activations . | . . . . . . . . . . . . . . . . . . . . . . Shielding Activations . | . . . . . . . . . . . . . . . . . . . . . . Robots Disrupted . | . . . . . . . . . . . . . . . . . . . . . . Combat Hostiles . | . . . . . . . . . . . . . . . . . . . . . . Robots Corrupted 5 | . . . . . . . . . . . . . 2 . . . . . . . 3 Combat Hostiles 3 | . . . . . . . . . . . . . . . . . . . . . 3 Parts Fried 8 | . . . . . . . . . . . . . 4 . . . . . . . 4 Impact Corruptions . | . . . . . . . . . . . . . . . . . . . . . . Robots Melted 16 | . . . . . . . . . 2 . . . . 3 1 1 . . . 4 5 Combat Hostiles 15 | . . . . . . . . . 2 . . . . 3 . 1 . . . 4 5 Parts Melted 104 | . 1 . 8 4 1 1 2 . 32 1 . . . 17 . 3 . . . 20 14 Heat Transferred 38695 | . 814 . 2590 888 407 211 907 . 8687 3350 653 37 . 4890 2179 1812 . 222 . 5951 5097 Parts Sabotaged 3 | . . . . . . . . . . . . . . . . . . . . 3 . Parts Stolen . | . . . . . . . . . . . . . . . . . . . . . . Parts Stripped . | . . . . . . . . . . . . . . . . . . . . . . Power Chain Reactions 2 | . . . . . . . . . . . . . . 1 . . . . . . 1 Alert | -11 -10 -10 -9 -9 -8 -8 -8 -8 -6 -6 -6 -6 -6 -5 -5 -5 -5 -4 -4 -4 -3 ------- Run | Yrd Mat Min Mat Min Mat Sto Rec Scr Fac Ext Cet Arc Hub Fac Upp Upp War Pro Fac Arm Res Maximum Alert Level 4 | . . . 1 . . . . . 3 3 2 1 1 2 . . . . 3 3 4 Low Security (%) 45 | 100 100 100 98 100 100 100 100 . 18 . . 55 92 71 . . . . . 15 22 Level 1 21 | . . . 1 . . . . . 18 60 . 44 7 11 . . . . . 28 46 Level 2 19 | . . . . . . . . . 44 38 100 . . 17 . . . . 44 11 9 Level 3 12 | . . . . . . . . . 18 1 . . . . . . . . 55 44 20 Level 4 . | . . . . . . . . . . . . . . . . . . . . . . Level 5 . | . . . . . . . . . . . . . . . . . . . . . . High Security . | . . . . . . . . . . . . . . . . . . . . . . Max Security . | . . . . . . . . . . . . . . . . . . . . . . Peak Influence 1163 | 5 102 24 200 196 71 62 74 . 944 861 570 370 288 674 . . . . 945 969 1163 Initial 945 | . 3 24 . 78 48 24 19 . . 457 481 209 1 119 . . . . 945 247 498 Average 313 | 1 44 6 95 82 40 33 12 . 443 407 511 177 44 179 . . . . 763 569 403 Influence Increases 11803 | 15 428 . 575 346 141 88 184 . 1739 1124 319 221 479 1222 272 166 . 271 1258 1287 1668 Destroy 0b10 Robot/C 5860 | . 240 . 300 240 80 40 80 . 820 620 160 80 60 660 240 140 . 240 200 720 940 Destroy 0b10 Robot/NC 550 | 15 30 . 75 15 5 . 35 . 85 105 10 . 45 70 10 . . 5 35 10 . Destroy Leader 1222 | . 56 . 106 40 20 20 . . 198 104 . . 32 170 20 20 . 10 62 154 210 Allied During Kill 518 | . . . . 21 6 4 . . . 185 119 72 87 . 2 6 . 16 . . . Successful Hack 169 | . 12 . 26 . 13 7 34 . 43 14 . . . 20 . . . . . . . Disable Machine 675 | . 30 . 30 . 15 15 30 . 150 15 15 45 120 60 . . . . . 150 . Anti-Garrison Action 200 | . . . . . . . . . 200 . . . . . . . . . . . . Destroy Structure 884 | . . . 8 . 2 2 5 . 123 51 15 9 135 212 . . . . 46 88 188 Advance Influence 900 | . . . . . . . . . . . . . . . . . . . 900 . . Partial Spotted 45 | . . . . . . . . . . . . 15 . 30 . . . . . . . Lose Combat Pursuer 780 | . 60 . 30 30 . . . . 120 30 . . . . . . . . 15 165 330 Influence Decreases 10640 | 10 371 62 375 422 206 95 236 . 805 1197 656 741 238 793 735 377 . 198 824 844 1455 Entered New Map 2639 | . 2 38 . 122 76 35 33 . . 477 380 315 3 126 251 41 . . 28 260 452 Time Decay 6242 | 10 309 24 375 280 130 60 203 . 605 490 206 386 206 557 374 276 . 158 416 474 703 Search Patrol Dispatched 300 | . . . . . . . . . . . . . . . . . . . 300 . . Lost Part 1190 | . 60 . . . . . . . 200 150 30 . . 110 110 40 . 20 60 110 300 Lost Ally 269 | . . . . 20 . . . . . 80 40 40 29 . . 20 . 20 20 . . Squads Dispatched 45 | . 2 . 1 . 1 . . . 15 4 . . 1 9 . . . 1 2 4 5 Investigation 18 | . 1 . 1 . 1 . . . 5 2 . . 1 3 . . . . . . 4 Extermination 12 | . . . . . . . . . 5 . . . . 3 . . . . 2 2 . Reinforcement 12 | . 1 . . . . . . . 3 2 . . . 3 . . . . . 2 1 Assault 2 | . . . . . . . . . 1 . . . . . . . . 1 . . . Garrison 1 | . . . . . . . . . 1 . . . . . . . . . . . . Intercept . | . . . . . . . . . . . . . . . . . . . . . . Searches Triggered 3 | . . . . . . . . . . . . . . . . . . . 3 . . Construction Impeded 5 | . . . . . . . . . 1 2 . . . 2 . . . . . . . Haulers Reinforced 1 | . . . . . . . . . 1 . . . . . . . . . . . . Active Scanning Responses . | . . . . . . . . . . . . . . . . . . . . . . Cargo Convoy Interrupts . | . . . . . . . . . . . . . . . . . . . . . . Stealth | -11 -10 -10 -9 -9 -8 -8 -8 -8 -6 -6 -6 -6 -6 -5 -5 -5 -5 -4 -4 -4 -3 --------- Run | Yrd Mat Min Mat Min Mat Sto Rec Scr Fac Ext Cet Arc Hub Fac Upp Upp War Pro Fac Arm Res Distress Signals 38 | . 6 1 2 . . 1 . . 4 3 2 . . 2 . . . 1 . 6 10 Communications Jammed 44 | . . . . . . . . . . 1 . . 1 15 . . . . . 27 . Distress Signals 44 | . . . . . . . . . . 1 . . 1 15 . . . . . 27 . Times Spotted 446 | . 25 . 25 13 3 3 2 . 65 35 8 7 9 41 12 7 . 18 25 54 94 Peak Tracking Total 19 | . 5 . 3 5 2 2 2 . 6 3 5 2 4 5 5 3 . 8 10 19 10 Tactical Retreats 26 | . 2 . 1 1 . . . . 6 2 . . . . . . . . 1 3 10 Traps | -11 -10 -10 -9 -9 -8 -8 -8 -8 -6 -6 -6 -6 -6 -5 -5 -5 -5 -4 -4 -4 -3 ------- Run | Yrd Mat Min Mat Min Mat Sto Rec Scr Fac Ext Cet Arc Hub Fac Upp Upp War Pro Fac Arm Res Traps Triggered 16 | . 2 . 2 . . . . . 6 2 . . 1 . . . . . . . 3 Indirectly 1 | . . . . . . . . . . . . . 1 . . . . . . . . Trap Hack Attempts . | . . . . . . . . . . . . . . . . . . . . . . Triggered . | . . . . . . . . . . . . . . . . . . . . . . Disarmed . | . . . . . . . . . . . . . . . . . . . . . . Reprogrammed . | . . . . . . . . . . . . . . . . . . . . . . Reused . | . . . . . . . . . . . . . . . . . . . . . . Traps Extracted . | . . . . . . . . . . . . . . . . . . . . . . Installed . | . . . . . . . . . . . . . . . . . . . . . . Triggered . | . . . . . . . . . . . . . . . . . . . . . . Most Traps Carried 5 | . . . . . . . . . . . . . . . 5 5 5 2 . . . Machines | -11 -10 -10 -9 -9 -8 -8 -8 -8 -6 -6 -6 -6 -6 -5 -5 -5 -5 -4 -4 -4 -3 ---------- Run | Yrd Mat Min Mat Min Mat Sto Rec Scr Fac Ext Cet Arc Hub Fac Upp Upp War Pro Fac Arm Res Machines Disabled 52 | . 2 . 2 . 1 1 2 . 10 4 1 3 8 4 . 1 1 2 . 10 . Max in Single Turn 8 | . 1 . 1 . 1 1 1 . 3 1 1 1 8 1 . 1 1 1 . 1 . Garrison Access 1 | . . . . . . . . . 1 . . . . . . . . . . . . Network Hub 1 | . . . . . . . . . . . . . 1 . . . . . . . . Machines Repaired . | . . . . . . . . . . . . . . . . . . . . . . Machines Dismantled 1 | . . . . . . . . . . . . . . . . . 1 . . . . Machines Sabotaged . | . . . . . . . . . . . . . . . . . . . . . . Overloaded Fab Kills . | . . . . . . . . . . . . . . . . . . . . . . Hacking | -11 -10 -10 -9 -9 -8 -8 -8 -8 -6 -6 -6 -6 -6 -5 -5 -5 -5 -4 -4 -4 -3 --------- Run | Yrd Mat Min Mat Min Mat Sto Rec Scr Fac Ext Cet Arc Hub Fac Upp Upp War Pro Fac Arm Res Machines Accessed 65 | . 6 . 11 . 2 2 6 4 11 5 . . 1 8 . . 2 . 3 . 4 Terminals 39 | . 6 . 9 . 2 2 5 . 5 5 . . . 3 . . . . 2 . . Fabricators 2 | . . . . . . . . . 1 . . . . 1 . . . . . . . Repair Stations 3 | . . . . . . . . . . . . . . 1 . . . . 1 . 1 Recycling Units 10 | . . . . . . . 1 . 3 . . . . 3 . . . . . . 3 Scanalyzers 3 | . . . 2 . . . . . 1 . . . . . . . . . . . . Garrison Access 2 | . . . . . . . . . 1 . . . 1 . . . . . . . . Total Hacks 139 | . 11 . 36 . 6 4 11 7 18 6 . . 2 17 . . 6 . 6 . 9 Successful 68 | . 6 . 14 . 2 1 8 7 13 2 . . . 7 . . 6 . 1 . 1 Failed 70 | . 5 . 22 . 3 3 3 . 5 4 . . 2 10 . . . . 5 . 8 Catastrophic 20 | . . . 4 . . 1 . . 3 3 . . . 6 . . . . 2 . 1 Database Lockouts 1 | . . . . . 1 . . . . . . . . . . . . . . . . Manual 88 | . 11 . 23 . 7 3 12 . 10 1 1 . 2 9 . 1 . . . . 8 Terminals 73 | . 11 . 23 . 6 4 8 . 6 6 . . . 5 . . . . 4 . . Fabricators 6 | . . . . . . . . . 4 . . . . 2 . . . . . . . Repair Stations 9 | . . . . . . . . . . . . . . 6 . . . . 2 . 1 Recycling Units 18 | . . . . . . . 3 . 3 . . . . 4 . . . . . . 8 Scanalyzers 15 | . . . 13 . . . . . 2 . . . . . . . . . . . . Garrison Access 5 | . . . . . . . . . 3 . . . 2 . . . . . . . . Terminal Hacks 21 | . . . 1 . 2 1 . 7 1 2 . . . 1 . . 6 . . . . Record 5 | . . . . . . . . 5 . . . . . . . . . . . . . Robot Analysis 3 | . . . 1 . 2 . . . . . . . . . . . . . . . . Prototype ID Bank 5 | . . . . . . . . . . . . . . . . . 5 . . . . Open Door 6 | . . . . . . 1 . 1 1 2 . . . . . . 1 . . . . Branch Access Points 1 | . . . . . . . . . . . . . . 1 . . . . . . . Proto ID Catalog 1 | . . . . . . . . 1 . . . . . . . . . . . . . Fabricator Hacks 6 | . . . . . . . . . 4 . . . . 2 . . . . . . . Load Schematic 3 | . . . . . . . . . 2 . . . . 1 . . . . . . . Build 3 | . . . . . . . . . 2 . . . . 1 . . . . . . . Repair Station Hacks 2 | . . . . . . . . . . . . . . 1 . . . . 1 . . Scan Component 2 | . . . . . . . . . . . . . . 1 . . . . 1 . . Recycling Unit Hacks . | . . . . . . . . . . . . . . . . . . . . . . Scanalyzer 8 | . . . 6 . . . . . 2 . . . . . . . . . . . . Insert Component 3 | . . . 2 . . . . . 1 . . . . . . . . . . . . Analyze 3 | . . . 2 . . . . . 1 . . . . . . . . . . . . Retrieve Study 2 | . . . 2 . . . . . . . . . . . . . . . . . . Garrison Access Hacks . | . . . . . . . . . . . . . . . . . . . . . . Unauthorized Hacks 31 | . 6 . 7 . . . 8 . 6 . . . . 3 . . . . . . 1 Terminals 20 | . 6 . 7 . . . 5 . 2 . . . . . . . . . . . . Botnet 2 | . . . . . . . . . 2 . . . . . . . . . . . . Operators 1 | . . . 1 . . . . . . . . . . . . . . . . . . Skim 17 | . 6 . 6 . . . 5 . . . . . . . . . . . . . . Fabricators . | . . . . . . . . . . . . . . . . . . . . . . Repair Stations . | . . . . . . . . . . . . . . . . . . . . . . Recycling Units 10 | . . . . . . . 3 . 3 . . . . 3 . . . . . . 1 Reject 1 | . . . . . . . 1 . . . . . . . . . . . . . . Recyclers 1 | . . . . . . . 1 . . . . . . . . . . . . . . Mask 1 | . . . . . . . 1 . . . . . . . . . . . . . . Fedlink 7 | . . . . . . . . . 3 . . . . 3 . . . . . . 1 Scanalyzers . | . . . . . . . . . . . . . . . . . . . . . . Garrison Access 1 | . . . . . . . . . 1 . . . . . . . . . . . . Jam 1 | . . . . . . . . . 1 . . . . . . . . . . . . Data Cores Recovered 2 | . 1 . . . 1 . . . . . . . . . . . . . . . . Used . | . . . . . . . . . . . . . . . . . . . . . . Hacking Detections 38 | . 3 . 9 . 2 1 2 . 6 4 1 . 1 3 . . . . 3 . 3 Full Trace Events 9 | . . . 3 . . . 1 . 1 1 . . 1 . . . . . . . 2 Feedback Events . | . . . . . . . . . . . . . . . . . . . . . . Feedback Blocked . | . . . . . . . . . . . . . . . . . . . . . . Robot Schematics Acquired . | . . . . . . . . . . . . . . . . . . . . . . Robots Built . | . . . . . . . . . . . . . . . . . . . . . . Authchips . | . . . . . . . . . . . . . . . . . . . . . . Time . | . . . . . . . . . . . . . . . . . . . . . . Total Robot Build Rating . | . . . . . . . . . . . . . . . . . . . . . . Part Schematics Acquired 2 | . . . 1 . . . . . 1 . . . . . . . . . . . . Parts Built 3 | . . . . . . . . . 2 . . . . 1 . . . . . . . Authchips 2 | . . . . . . . . . 1 . . . . 1 . . . . . . . Time 456 | . . . . . . . . . 304 . . . . 152 . . . . . . . Total Part Build Rating 15 | . . . . . . . . . 10 . . . . 5 . . . . . . . Part Studies Acquired 2 | . . . 2 . . . . . . . . . . . . . . . . . . Parts Repaired . | . . . . . . . . . . . . . . . . . . . . . . Time . | . . . . . . . . . . . . . . . . . . . . . . Parts Recycled . | . . . . . . . . . . . . . . . . . . . . . . Recycled Matter . | . . . . . . . . . . . . . . . . . . . . . . Retrieved Matter . | . . . . . . . . . . . . . . . . . . . . . . Retrieved Components . | . . . . . . . . . . . . . . . . . . . . . . Parts Scanalyzed 2 | . . . 1 . . . . . 1 . . . . . . . . . . . . Part Schematics Acquired 2 | . . . 1 . . . . . 1 . . . . . . . . . . . . Parts Damaged 1 | . . . 1 . . . . . . . . . . . . . . . . . . Bothacking | -11 -10 -10 -9 -9 -8 -8 -8 -8 -6 -6 -6 -6 -6 -5 -5 -5 -5 -4 -4 -4 -3 ------------ Run | Yrd Mat Min Mat Min Mat Sto Rec Scr Fac Ext Cet Arc Hub Fac Upp Upp War Pro Fac Arm Res Used RIF Installer . | . . . . . . . . . . . . . . . . . . . . . . Robots Hacked . | . . . . . . . . . . . . . . . . . . . . . . Non-combat . | . . . . . . . . . . . . . . . . . . . . . . Combat . | . . . . . . . . . . . . . . . . . . . . . . Robot Hacks Applied . | . . . . . . . . . . . . . . . . . . . . . . Relay Couplers Released . | . . . . . . . . . . . . . . . . . . . . . . Fabnet Peak Effective % . | . . . . . . . . . . . . . . . . . . . . . . Robots Rewired 10 | . . . . . . . . . . 7 . . . . 1 . . 2 . . . Allies Hacked . | . . . . . . . . . . . . . . . . . . . . . . Hacks Repelled . | . . . . . . . . . . . . . . . . . . . . . . Allies | -11 -10 -10 -9 -9 -8 -8 -8 -8 -6 -6 -6 -6 -6 -5 -5 -5 -5 -4 -4 -4 -3 -------- Run | Yrd Mat Min Mat Min Mat Sto Rec Scr Fac Ext Cet Arc Hub Fac Upp Upp War Pro Fac Arm Res Total Allies 22 | . . . . 3 . . . . . 11 5 . . . 1 . . 2 . . . Largest Group 9 | . . . . 3 1 1 1 . . 6 9 8 4 . 1 1 . 2 1 . . Highest-Rated Group 743 | . . . . 72 31 31 31 . . 346 743 641 320 . 30 30 . 98 49 . . Highest-Rated Ally 159 | . . . . 31 31 31 31 . . 159 159 153 96 . 30 30 . 49 49 . . Initial UFD Resources 66 | . . . . . . . . . 24 40 40 40 40 44 60 60 60 63 63 63 66 Total Orders 2 | . . . . . . . . . . . . . . . . . . . . . 2 EXPLORE 2 | . . . . . . . . . . . . . . . . . . . . . 2 Ally Attacks 288 | . . . . 6 12 3 2 . . 117 58 34 16 . 7 17 . 16 . . . Total Damage 7001 | . . . . 104 148 20 22 . . 2758 1483 768 382 . 215 610 . 491 . . . Kills 49 | . . . . 2 2 . . . . 26 7 3 5 . . 1 . 3 . . . Allies Corrupted 2 | . . . . . . . . . . . . . 2 . . . . . . . . Allies Melted . | . . . . . . . . . . . . . . . . . . . . . . Intel | -11 -10 -10 -9 -9 -8 -8 -8 -8 -6 -6 -6 -6 -6 -5 -5 -5 -5 -4 -4 -4 -3 ------- Run | Yrd Mat Min Mat Min Mat Sto Rec Scr Fac Ext Cet Arc Hub Fac Upp Upp War Pro Fac Arm Res Active Infowar (turns) 20951 | 1 359 33 1327 686 272 138 851 1372 3209 1295 430 900 643 1897 877 857 77 500 1000 1218 3009 Optics 15896 | . . . . . . . . . 3193 1295 430 900 643 1897 877 857 77 500 1000 1218 3009 Sensors 1152 | . . . . . . . . . . . . . . . . . . . . . 1152 Terrain 1 | . . . 1 . . . . . . . . . . . . . . . . . . Seismic 5965 | 1 359 33 1326 686 272 138 851 1372 432 . . . . . . . . . . . 495 Jamming 6027 | . . . . . . . . . . 154 430 900 643 545 . . . . 845 1218 1292 Robot Analysis Total 3 | . . . 1 . 2 . . . . . . . . . . . . . . . . Derelict Logs Recovered 7 | . . 1 . 1 . . . . . . . . . . 2 2 . 1 . . . Drone Launches 4 | . . . . . . . . . . . . . . . . . . . . . 4 Drone Recoveries 2 | . . . . . . . . . . . . . . . . . . . . . 2 Exploration | -11 -10 -10 -9 -9 -8 -8 -8 -8 -6 -6 -6 -6 -6 -5 -5 -5 -5 -4 -4 -4 -3 ------------- Run | Yrd Mat Min Mat Min Mat Sto Rec Scr Fac Ext Cet Arc Hub Fac Upp Upp War Pro Fac Arm Res Turns Passed 22530 | 118 820 117 1338 686 272 138 851 1372 3209 1295 430 900 643 1897 877 1106 697 500 1000 1218 3046 Spaces Moved 13857 | 74 542 143 1077 614 210 108 751 1201 1894 702 197 117 397 1072 468 419 348 220 553 666 2084 Core 79 | 5 . . . . . . . . . . . . . . . . . . . . 74 Treads 3 | . 3 . . . . . . . . . . . . . . . . . . . . Legs 3911 | . . . . . . . . . . . . . . . 74 419 348 220 248 592 2010 Wheels 9864 | 69 539 143 1077 614 210 108 751 1201 1894 702 197 117 397 1072 394 . . . 305 74 . Hover . | . . . . . . . . . . . . . . . . . . . . . . Flight . | . . . . . . . . . . . . . . . . . . . . . . Fastest Speed 50 | 50 80 80 80 95 105 105 105 105 105 115 130 145 145 100 100 190 183 183 110 113 50 Average Speed 122 | 96 96 80 95 103 105 105 105 105 120 126 131 145 145 120 152 237 188 183 150 120 114 Slowest Speed 540 | 100 160 80 105 105 105 105 105 105 150 130 145 145 145 165 330 540 190 183 186 125 190 Overloaded Moves . | . . . . . . . . . . . . . . . . . . . . . . Propulsion Burnouts . | . . . . . . . . . . . . . . . . . . . . . . Robots Hopped . | . . . . . . . . . . . . . . . . . . . . . . Potential Cave-ins 6 | . . . . . . . . . . . . . . . . . . . . 4 2 Cave-ins Triggered . | . . . . . . . . . . . . . . . . . . . . . . Exploration Rate (%) 55 | 4 87 33 73 98 18 23 94 92 40 88 76 91 26 28 61 68 50 53 21 37 68 Regions Visited 21 Branch Regions 14 Pre-discovered Areas 8 | . 1 . 3 1 . . . 1 1 . . . . . . 1 . . . . . Known Exits Taken 6 | . . . 1 1 1 1 . . . . . . . 1 . . . . 1 . . Unknown Exits Taken 15 | 1 1 1 . . . . 1 1 1 1 1 1 1 . 1 1 1 1 . 1 . Scrap Searched 10 | . . . . 1 . . . 3 . . . . . . 4 1 . 1 . . . Spaces Dug 40 | . . . . . . . . . 10 . . . 5 4 8 . . . . . 13 Terrain Destroyed 771 | . . . . . . 2 3 . 139 27 8 6 184 107 82 7 . 18 22 57 109 Melee . | . . . . . . . . . . . . . . . . . . . . . . Projectile 467 | . . . . . . 2 3 . 75 27 8 6 11 93 42 7 . 18 20 57 98 AOE 302 | . . . . . . . . . 64 . . . 173 14 40 . . . . . 11 Terrain Rammed . | . . . . . . . . . . . . . . . . . . . . . . Walls Destroyed . | . . . . . . . . . . . . . . . . . . . . . . Machines Disabled . | . . . . . . . . . . . . . . . . . . . . . . Actions | -11 -10 -10 -9 -9 -8 -8 -8 -8 -6 -6 -6 -6 -6 -5 -5 -5 -5 -4 -4 -4 -3 --------- Run | Yrd Mat Min Mat Min Mat Sto Rec Scr Fac Ext Cet Arc Hub Fac Upp Upp War Pro Fac Arm Res Total 17534 | 97 712 145 1267 633 250 118 783 1314 2522 900 333 826 449 1463 540 476 381 263 648 890 2524 Wait 1950 | . 68 . 77 . 5 4 7 107 385 50 90 695 35 215 . 5 . . 6 10 191 Move 13836 | 73 541 142 1076 613 209 107 750 1200 1893 701 196 116 396 1071 467 418 347 219 552 665 2084 Hop . | . . . . . . . . . . . . . . . . . . . . . . Pick Up 190 | 6 13 1 17 2 10 . 2 3 20 8 9 . 2 9 5 2 5 4 15 32 25 Fast Attach 140 | 6 6 . 7 . . . . . 22 7 6 2 1 14 9 6 8 2 6 13 25 Attach 101 | 1 4 . 1 . 2 . . . 15 8 3 . . 8 2 9 . 1 3 21 23 Detach 23 | . . . . . . . . . 1 . . . . 2 1 5 1 1 2 4 6 Swap 164 | . 5 1 15 1 4 1 4 1 19 10 4 1 1 21 8 1 4 3 12 19 29 Drop 208 | . 8 1 18 3 11 . 5 3 23 1 8 1 2 18 2 3 8 3 17 34 39 Fire 895 | 11 67 . 56 14 9 6 15 . 134 107 17 11 12 105 46 27 . 29 35 92 102 Melee . | . . . . . . . . . . . . . . . . . . . . . . Ram . | . . . . . . . . . . . . . . . . . . . . . . Kick 1 | . . . . . . . . . . . . . . . . . . 1 . . . Crush . | . . . . . . . . . . . . . . . . . . . . . . Escape Stasis 18 | . . . . . . . . . 10 8 . . . . . . . . . . . Rewire . | . . . . . . . . . . . . . . . . . . . . . . Trap . | . . . . . . . . . . . . . . . . . . . . . . Miscellaneous 8 | . . . . . . . . . . . . . . . . . 8 . . . . Route ------- -11/Scrapyard -10/Materials (discovered 6 exits: *Mat x3 / [*Min x2] / Sub) -10/Mines (discovered 3 exits: *Mat / Exi / Sub) -9/Materials (discovered 4 exits: *Mat x3 / *Min) -9/Mines (discovered 2 exits: *Mat x2) -8/Materials (discovered 2 exits: *Sto x2) -8/Storage -8/Recycling (discovered 2 exits: *Fac / *Scr) -8/Scraptown (discovered 2 exits: *Fac x2) -6/Factory (discovered 3 exits: *Fac / [*Low] / *Ext) -6/Extension (discovered 2 exits: *Fac / *Cet) -6/Cetus (discovered 2 exits: *Fac / [*Arc]) -6/Archives (discovered 3 exits: *Fac / *Hub x2) -6/Hub_04(d) -5/Factory (discovered 4 exits: *Fac x2 / *Upp x2) -5/Upper Caves -5/Upper Caves -5/Warlord -4/Proximity Caves -4/Factory (discovered 3 exits: *Res / Upp / *Arm) -4/Armory -3/Research (discovered 2 exits: *Res x2) History --------- Turn | Location | Event 13 | -11/Scrapyard | Discovered new exit (range 15) 119 | -11/Scrapyard | Entered Materials 179 | -10/Materials | Discovered new exit (range 5) 199 | -10/Materials | Discovered new exit (range 12) 271 | -10/Materials | Discovered new exit (range 9) 325 | -10/Materials | Build established: Mutant 331 | -10/Materials | Discovered new exit (range 11) 421 | -10/Materials | Discovered new exit (range 6) 540 | -10/Materials | Lost 3 parts (2n1w) 820 | -10/Materials | Learned location of 2 exits from Mines 847 | -10/Materials | Identified exit to Subcaves 866 | -10/Materials | Learned 4 Subcaves zone layouts 939 | -10/Materials | Entered Mines 940 | -10/Mines | Identified exit to Exiles 1005 | -10/Mines | Assembled infested the area 1010 | -10/Mines | Assisted by a Guerilla fighting off Assembled 1030 | -10/Mines | Found a damaged Exp. Sensor Array with a note attached 1032 | -10/Mines | Found Prototype Device 1047 | -10/Mines | Discovered new exit (range 12) 1056 | -10/Mines | Entered Materials 1056 | -9/Materials | Evolved 2 slots: Utility x1, Weapon x1 1406 | -9/Materials | Build established: Scavenger-Gunner 1477 | -9/Materials | Discovered new exit (range 16) 1905 | -9/Materials | Discovered new exit (range 16) 1973 | -9/Materials | Identified exit to Mines 1973 | -9/Materials | Identified exit to Materials 2083 | -9/Materials | Identified Exp. Sensor Array 2394 | -9/Materials | Entered Mines 2487 | -9/Mines | Discovered exit to Materials (range 15) 2497 | -9/Mines | Received a Mining Laser from a helpful Derelict 2902 | -9/Mines | Discovered exit to Materials (range 8) 2973 | -9/Mines | Found a Scrap Suit stashed away for nefarious purposes 3080 | -9/Mines | Entered Materials 3080 | -8/Materials | Accompanied by 1 ally 3080 | -8/Materials | Evolved 2 slots: Utility x2 3081 | -8/Materials | Identified exit to Storage 3085 | -8/Materials | Led the pair of lost Derelicts to an unsafe place 3128 | -8/Materials | Discovered exit to Storage (range 15) 3246 | -8/Materials | Central database locked down 3352 | -8/Materials | Entered Storage 3352 | -8/Storage | Accompanied by 1 ally 3353 | -8/Storage | Identified exit to Recycling 3391 | -8/Storage | Build established: Scavenger-Tank 3484 | -8/Storage | Used back door to open Recycling access 3490 | -8/Storage | Entered Recycling 3490 | -8/Recycling | Accompanied by 1 ally 3778 | -8/Recycling | Discovered new exit (range 15) 3803 | -8/Recycling | Scanned before Scraplab entrance 4332 | -8/Recycling | Entered Scraplab 4340 | -8/Recycling | Discovered new exit (range 2) 4341 | -8/Recycling | Entered Scraptown 4479 | -8/Scraptown | Visited Cave Peace 4510 | -8/Scraptown | Visited Awakened 4538 | -8/Scraptown | Heard Great Nut preacher, LISTEN AND RECITE! 4785 | -8/Scraptown | Discovered new exit (range 11) 4850 | -8/Scraptown | Visited Fellowship of the Rings 4860 | -8/Scraptown | Visited Shadow of the Wyrm 4901 | -8/Scraptown | Visited UFD Registry 4915 | -8/Scraptown | Visited TADAMA 4932 | -8/Scraptown | Visited Cyclists 4953 | -8/Scraptown | Visited Junk Repository 4986 | -8/Scraptown | Registered with UFD as "Maceslasher" 5016 | -8/Scraptown | Entered Cyclist Reading Room 5079 | -8/Scraptown | Visited Curators Association 5116 | -8/Scraptown | Visited Infowarlord's Domain 5123 | -8/Scraptown | Found Spectral Analyzer 5146 | -8/Scraptown | Visited Science Testing Area 5175 | -8/Scraptown | Visited Abandonware Association 5185 | -8/Scraptown | Learned abandonware demo "REVENGE.EXE" 5206 | -8/Scraptown | Visited Junk Repository 5236 | -8/Scraptown | Visited Scrap Suit Storage 5262 | -8/Scraptown | Visited Sword Containment 5310 | -8/Scraptown | Visited Chapter 10 5325 | -8/Scraptown | Visited LU-1G1's Boring Crew 5365 | -8/Scraptown | Visited Science Guys 5657 | -8/Scraptown | Met Optimus 5657 | -8/Scraptown | Accepted into 0bPrime 5709 | -8/Scraptown | Discovered new exit (range 5) 5713 | -8/Scraptown | Entered Factory 5713 | -6/Factory | Evolved 4 slots: Power x1, Utility x3 6124 | -6/Factory | Garrison activated, responded to threat 6691 | -6/Factory | Loaded intel: 8 recycling unit locations 6895 | -6/Factory | Destroyed 7 combat bots 7344 | -6/Factory | Lost 8 parts (2n4u2w) 7891 | -6/Factory | Fabricated Cld. Plasma Cannon (x1) 8006 | -6/Factory | Build established: Scavenger-Gunner 8048 | -6/Factory | Fabricated Cld. Plasma Cannon? 8325 | -6/Factory | Discovered new exit (range 10) 8383 | -6/Factory | Destroyed 7 combat bots 8572 | -6/Factory | Discovered new exit (range 10) 8733 | -6/Factory | Learned location of Protoforge (-2) 8850 | -6/Factory | Discovered new exit (range 6) 8863 | -6/Factory | First assault squad dispatched 8922 | -6/Factory | Entered Extension 9022 | -6/Extension | Rescued a captive Derelict 9084 | -6/Extension | Rescued a captive Derelict 9180 | -6/Extension | Spotted B-75 Beast 9525 | -6/Extension | Destroyed B-75 Beast 9549 | -6/Extension | Spotted B-75 Beast 9562 | -6/Extension | Core integrity fell below 50% 9671 | -6/Extension | Destroyed B-75 Beast 9697 | -6/Extension | Disrupted transfer network 9736 | -6/Extension | Lost 8 parts (2p1n2u3w) 9796 | -6/Extension | Rescued A7 9976 | -6/Extension | System corruption reached 10% 10137 | -6/Extension | Rescued a captive Derelict 10137 | -6/Extension | Rescued a captive Derelict 10180 | -6/Extension | Discovered new exit (range 10) 10181 | -6/Extension | Discovered new exit (range 6) 10203 | -6/Extension | Disrupted transfer network 10217 | -6/Extension | Entered Cetus 10217 | -6/Cetus | Accompanied by 5 allies (A7) 10222 | -6/Cetus | Acquired a Cetus Manufacturing Module code from A7 10228 | -6/Cetus | Spotted Cetus Guard 10228 | -6/Cetus | Spotted Cetus Guard 10232 | -6/Cetus | Spotted Cetus Guard 10235 | -6/Cetus | Spotted Cetus Guard 10245 | -6/Cetus | Allies destroyed Cetus Guard 10250 | -6/Cetus | Allies destroyed Cetus Guard 10254 | -6/Cetus | Allies destroyed Cetus Guard 10258 | -6/Cetus | Destroyed Cetus Guard 10354 | -6/Cetus | Started Cetus Manufacturing Module 10368 | -6/Cetus | Escorted A7 to Cetus Mainframe 10379 | -6/Cetus | Manufactured an Enhanced Grunt 10395 | -6/Cetus | Discovered new exit (range 23) 10404 | -6/Cetus | Manufactured an Enhanced Grunt 10429 | -6/Cetus | Manufactured an Enhanced Grunt 10454 | -6/Cetus | Manufactured an Enhanced Grunt 10479 | -6/Cetus | Manufactured an Enhanced Grunt 10504 | -6/Cetus | Spotted Cetus Guard 10504 | -6/Cetus | Spotted Cetus Guard 10507 | -6/Cetus | Spotted Cetus Guard 10507 | -6/Cetus | Spotted Cetus Guard 10509 | -6/Cetus | Discovered new exit (range 24) 10511 | -6/Cetus | Destroyed Cetus Guard 10524 | -6/Cetus | Allies destroyed Cetus Guard 10533 | -6/Cetus | Destroyed Cetus Guard 10547 | -6/Cetus | Allies destroyed Cetus Guard 10554 | -6/Cetus | Met Revision 17 10647 | -6/Cetus | Entered Archives 10647 | -6/Archives | Accompanied by 8 allies (A7) 10652 | -6/Archives | Received a hacking code to weaken MAIN.C 10688 | -6/Archives | Discovered new exit (range 23) 10715 | -6/Archives | Discovered new exit (range 24) 10724 | -6/Archives | Discovered new exit (range 23) 10725 | -6/Archives | Lost 3 allies 11547 | -6/Archives | Entered Hub_04(d) 11547 | -6/Hub_04(d) | Accompanied by 4 allies 12024 | -6/Hub_04(d) | Discovered new exit (range 24) 12144 | -6/Hub_04(d) | Network Hub disabled 12149 | -6/Hub_04(d) | Spotted Lightning 12171 | -6/Hub_04(d) | Spotted Lightning 12171 | -6/Hub_04(d) | Spotted Lightning 12173 | -6/Hub_04(d) | Spotted Lightning 12190 | -6/Hub_04(d) | Entered Factory 12190 | -5/Factory | Evolved 2 slots: Propulsion x1, Utility x1 12445 | -5/Factory | Discovered new exit (range 17) 12598 | -5/Factory | Loaded intel: 8 recycling unit locations 12646 | -5/Factory | Build established: Scavenger-Tank 12943 | -5/Factory | Discovered new exit (range 9) 13159 | -5/Factory | Fabricated Cld. Plasma Cannon? 13573 | -5/Factory | Lost 7 parts (1p1n2u3w) 13645 | -5/Factory | System corruption reached 10% 13821 | -5/Factory | Identified exit to Upper Caves 14087 | -5/Factory | Entered Upper Caves 14217 | -5/Upper Caves | Attracted the attention of an 0b10 checkpoint 14263 | -5/Upper Caves | Lost 3 parts (1n1u1w) 14335 | -5/Upper Caves | Attracted the attention of an 0b10 outpost 14615 | -5/Upper Caves | Learned Factory security intel 14670 | -5/Upper Caves | Learned 4 Factory zone layouts 14706 | -5/Upper Caves | Spotted B-75 Beast 14841 | -5/Upper Caves | Destroyed B-75 Beast 14865 | -5/Upper Caves | Lost 5 parts (2n3u) 14904 | -5/Upper Caves | Discovered new exit (range 4) 14964 | -5/Upper Caves | Entered another Upper Caves area 14964 | -5/Upper Caves | Accompanied by 1 ally 15217 | -5/Upper Caves | Spotted B-75 Beast 15232 | -5/Upper Caves | Build established: Scavenger-Gunner 15463 | -5/Upper Caves | Destroyed B-75 Beast 15475 | -5/Upper Caves | Lost 3 parts (1p1u1w) 15502 | -5/Upper Caves | Learned 4 Factory zone layouts 15513 | -5/Upper Caves | Learned location of Armory (-4) 15594 | -5/Upper Caves | Acquired the password to a Derelict Tinkerer's latest research 15617 | -5/Upper Caves | Found Prototype Special Weapon 15774 | -5/Upper Caves | Attracted the attention of an 0b10 checkpoint 15793 | -5/Upper Caves | System corruption reached 30% 15808 | -5/Upper Caves | Core integrity fell below 50% 15845 | -5/Upper Caves | Lost 6 parts (1p1n3u1w) 16051 | -5/Upper Caves | Discovered new exit (range 13) 16070 | -5/Upper Caves | Entered Warlord 16135 | -5/Warlord | System corruption cleaned by Quarantine Array 16201 | -5/Warlord | Build established: Scavenger-Tank 16590 | -5/Warlord | Found Prototype Processor 16590 | -5/Warlord | Identified Exp. Targeting Computer 16600 | -5/Warlord | Found Prototype Processor 16600 | -5/Warlord | Identified Exp. Armor Integrity Analyzer 16603 | -5/Warlord | Found Prototype Device 16603 | -5/Warlord | Identified Exp. Focal Shield 16634 | -5/Warlord | Found Prototype Reactor 16634 | -5/Warlord | Identified Vortex Chain Reactor 16718 | -5/Warlord | Opened side exit 16754 | -5/Warlord | Discovered new exit (range 9) 16767 | -5/Warlord | Entered Proximity Caves 16863 | -4/Proximity Caves | Spotter reported a threat 16886 | -4/Proximity Caves | Build established: Derelict-Gunner 16899 | -4/Proximity Caves | Spotter reported a threat 16928 | -4/Proximity Caves | Attracted the attention of an 0b10 outpost 16929 | -4/Proximity Caves | Spotter reported a threat 16957 | -4/Proximity Caves | Spotter reported a threat 17005 | -4/Proximity Caves | Spotter reported a threat 17010 | -4/Proximity Caves | Spotter reported a threat 17101 | -4/Proximity Caves | Spotter reported a threat 17154 | -4/Proximity Caves | Spotter reported a threat 17180 | -4/Proximity Caves | Learned Research emergency access door positions 17190 | -4/Proximity Caves | Spotter reported a threat 17253 | -4/Proximity Caves | Discovered new exit (range 9) 17267 | -4/Proximity Caves | Entered Factory 17267 | -4/Factory | Accompanied by 1 ally 17267 | -4/Factory | Evolved 2 slots: Propulsion x2 17268 | -4/Factory | Identified exit to Armory 17268 | -4/Factory | Identified exit to Upper Caves 17365 | -4/Factory | Build established: Scavenger-Tank 17726 | -4/Factory | Discovered new exit (range 8) 17767 | -4/Factory | Search patrols dispatched 17977 | -4/Factory | System corruption reached 10% 18017 | -4/Factory | Search patrols dispatched 18267 | -4/Factory | Search patrols dispatched 18267 | -4/Factory | Entered Armory 18297 | -4/Armory | Lost 3 parts (1p1n1u) 18425 | -4/Armory | Build established: Scavenger-Gunner 18762 | -4/Armory | Spotted B-86 Titan 18769 | -4/Armory | Destroyed B-86 Titan 18827 | -4/Armory | Build established: Gunner 18876 | -4/Armory | Lost 3 parts (2p1n) 19003 | -4/Armory | Destroyed 7 combat bots 19081 | -4/Armory | Lost 3 parts (2u1w) 19129 | -4/Armory | Build established: Scavenger-Gunner 19133 | -4/Armory | Discovered new exit (range 3) 19437 | -4/Armory | Build established: Scavenger-Tank 19485 | -4/Armory | Entered Research 19485 | -3/Research | Evolved 2 slots: Propulsion x1, Utility x1 19685 | -3/Research | Revision forces began assault on 0b10 19705 | -3/Research | Met up with Revision 17++ 19861 | -3/Research | Build established: Scavenger-Gunner 20185 | -3/Research | Research terminal network offline 20212 | -3/Research | Allied Derelicts emerged from ambush trap array 20567 | -3/Research | Build established: Gunner 20654 | -3/Research | Spotted Striker 20700 | -3/Research | Lost 3 allies 20735 | -3/Research | Spotted Striker 20735 | -3/Research | Spotted Striker 20737 | -3/Research | Destroyed Striker 20771 | -3/Research | Spotted Striker 20819 | -3/Research | Discovered new exit (range 10) 20828 | -3/Research | Lost 11 allies 20856 | -3/Research | Identified exit to Research 20880 | -3/Research | Spotted Striker 20887 | -3/Research | Destroyed Striker 20941 | -3/Research | Destroyed Striker 20994 | -3/Research | Lost 6 parts (1p1n1u3w) 21050 | -3/Research | Found Gamma Bomb Array 21362 | -3/Research | Discovered exit to Research (range 155) 21412 | -3/Research | Spotted Striker 21421 | -3/Research | Spotted Executioner 21566 | -3/Research | Destroyed Executioner 21577 | -3/Research | Found Prototype Processor 21626 | -3/Research | Spotted Striker 21628 | -3/Research | Spotted Striker 21657 | -3/Research | Destroyed Striker 21661 | -3/Research | Destroyed Striker 21664 | -3/Research | Identified Exp. Core Analyzer 21687 | -3/Research | Lost 3 parts (1p2u) 21753 | -3/Research | Spotted Striker 21764 | -3/Research | Destroyed Striker 21783 | -3/Research | Spotted Striker 21787 | -3/Research | Destroyed Striker 21790 | -3/Research | Spotted Striker 21794 | -3/Research | Spotted Striker 21800 | -3/Research | Destroyed Striker 21835 | -3/Research | Destroyed Striker 21943 | -3/Research | Spotted Executioner 21943 | -3/Research | Spotted Striker 21971 | -3/Research | Destroyed Striker 21994 | -3/Research | Destroyed Executioner 22194 | -3/Research | Loaded intel: 5 recycling unit locations 22252 | -3/Research | Spotted Striker 22331 | -3/Research | Build established: Scavenger-Tank 22349 | -3/Research | Spotted Executioner 22356 | -3/Research | Destroyed Executioner 22373 | -3/Research | Spotted Striker 22375 | -3/Research | Spotted Striker 22376 | -3/Research | Spotted Striker 22390 | -3/Research | Destroyed Striker 22390 | -3/Research | Spotted Striker 22392 | -3/Research | Spotted Striker 22395 | -3/Research | Core integrity fell below 50% 22410 | -3/Research | Destroyed Striker 22410 | -3/Research | Destroyed Striker 22410 | -3/Research | Spotted Executioner 22411 | -3/Research | Destroyed Striker 22435 | -3/Research | Destroyed Striker 22463 | -3/Research | Lost 7 parts (2p1n2u2w) 22481 | -3/Research | Core integrity fell below 20% 22494 | -3/Research | Released all parts (13) 22524 | -3/Research | Lost 7 parts (1p1n4u1w) 22531 | -3/Research | Destroyed by D-83 Annihilator with Micro-nuke Launcher Last Messages --------------- 22493_ U 22525_ Drone sends a signal. Map ----- +----------------------------------------------------+ | ?????????????????????????????????????????????????? | | ?????????????????????????????????????????????????? | | ?????????????????????????????????????????????????? | | ?????????????????????????????????????????????????? | | ?????????????????????????????????????????????????? | | ?????????????????????????????????????????????????? | | ?????????????????????????????????????????????????? | | ?????????????????????????????????????????????????? | | ???????????????????????##############????????????? | | ?????????########??????# #????????????? | | ???####### #??????# ##???????????? | | ???# # ]#??????# ""???????????? | | #### # #??????# ""#??????????? | | " + #??????# ""#??????????? | | #### # #??????# T#??????????? | | ???# # [ #??????# ""#??????????? | | ???##############??????# ""#??????????? | | ????????????????????#### ""#??????????? | | ##############??????# + #????????????? | | + #??????# ## #????????????? | | # #??????# ## #????????????? | | # #??????# ######+#+############??????? | | # ########+###### + #??????? | | " # """ # # # #??????? | | " # """ # = # # #??????? | | " + """ # @ /d + #??????? | | # # # n # #??????? | | # # """ """ # # """ #??????? | | #######+## """S""" # #? """ #??????? | | #???# ############### #? """ #??????? | | ##### #??####??????????? | | " # #????????????????? | | ##### #????????????????? | | = ""### #????????????????? | | #????????????????? | | #????????????????? | | ???????????????? | | ?????????????? | | ##""###########% !!????????????? | | ## ????????# %*[???????????? | | ## ??????# ############!#??????????? | | ## """ ?????# #????????????#??????????? | | "# """ "????# #???????????????????????? | | ## """ "?? # #???????????????????????? | | ## ???? + #???????????????????????? | | ## ?? ?# #???????????????????????? | | ## """ """??? ????????????????????????? | | ## """ """???????????????????????????????? | | ## """ """ #????????????????????????????? | | + #????????????????????????????? | +----------------------------------------------------+ Best States ------------- Heat Dissipation 131 Coolant Potential 100 Energy Generation 55 Energy Capacity 700 Matter Stores 300 Matter Capacity 300 Sight Range 24 Robot Scan Range 16 Terrain Scan Density 10 Jamming Range 14 Power Amplification 30 Armor Coverage 675 Resistance: KI 30 Resistance: TH 15 Resistance: EM 25 Core Shielding 30 Weapon Shielding 66 Weapon Cycling 20 Phase Shifting 10 Evasion (%) 69 Targeting Accuracy 12 Target Analysis 6 Core Analysis 8 Armor Integrity Analysis 50 Recoil Reduction 2 Energy Filtering 30 Particle Charging 25 Salvage Targeting 2 Offensive Hacking 10 Authchip Count 2 Item Schematics ----------------- Exp. Sensor Array | -9/Materials | Scanalyzed Cld. Plasma Cannon | -6/Factory | Scanalyzed Robot Schematics ------------------ None Fabricated ------------ Cld. Plasma Cannon | x1 | -6/Factory | Authchip Cld. Plasma Cannon | x1 | -6/Factory Cld. Plasma Cannon | x1 | -5/Factory | Authchip Repaired ---------- Nothing Studied --------- Wheel | -9/Materials | Hacked Com. Wheel | -9/Materials | Hacked Alien Tech Used ----------------- None Achievements -------------- Hot Stuff Challenges ------------ None Game ------ Seed ThermicGravjetScrap Manual? 0 Play Time 03:41:58 Cumulative 174.4 hours Start 2026.02.26 @ 18:33:32 End 2026.03.01 @ 00:19:44 Sessions 3 Manual Loads 0 Difficulty Rogue Special Mode None Game No. 89 Rogue 89 Adventurer 0 Explorer 0 Win Type - Total 7 Types 6/0/1/0/0/0/0/0/0/0 Lore% 69 Gallery% 65 Achievement% 63 Wizard Run 0 Options --------- Layout 0 ASCII 0 Keyboard 1 Movement Arrows Keybinds 0 Fullscreen 1 Font 18/SmallcapsGlow Map View 76x50 Zoom Use 0% Tactical HUD 1 Map Filters NONE Filters NONE Steam 1 RUN: 4f85d264-a37b-47a0-b6aa-a8b9ac9294a3